Cogmind - Beta 16.1 @@@ ROGUE MODE // 2026.02.20 @ 12:38:34 Player: Btonasse Result: Destroyed by XG-HVA(R) with Subdweller Machine Gun Performance ------------- Evolutions (0) 0 Regions Visited (2) 400 Robots Destroyed (13) 65 Value Destroyed (418) 418 Prototype IDs (13) 260 Alien Tech Used (0) 0 Bonus (-12) -12 TOTAL SCORE: 1131 Bonus ------- Friendly Fire -12 Cogmind --------- Core Integrity 0/250 Matter 300/300 Energy 248/250 System Corruption 0% Temperature Cool (0) Movement Walking (260) Ox2 Location -10/Subcaves Parts ------- > --- POWER (1) -------- Ion Engine > --- PROPULSION (2) --- Aluminum Leg Aluminum Leg > --- UTILITY (2) ------ High-capacity Storage Unit Subdweller Optics > --- WEAPON (2) ------- EM Pulse Gun > --- INVENTORY (20) --- Aluminum Leg Aluminum Leg Wheel Compact Wheel Hover Unit Heat Sink High-capacity Storage Unit Structural Scanner Makeshift Kinetic Plating Subdweller Beam Cannon Light Assault Rifle Light Assault Rifle 1B-0RG's Assimilator Peak State ------------ > --- POWER ------------ Ion Engine > --- PROPULSION ------- Aluminum Leg Aluminum Leg > --- UTILITY ---------- High-capacity Storage Unit Subdweller Optics > --- WEAPON ----------- EM Pulse Gun Medium Laser > --- INVENTORY -------- Aluminum Leg Aluminum Leg Wheel Compact Wheel Hover Unit Heat Sink High-capacity Storage Unit Structural Scanner Makeshift Kinetic Plating Subdweller Beam Cannon Light Assault Rifle Light Assault Rifle 1B-0RG's Assimilator [Rating: 16] Favorites ----------- Power Ion Engine Engine Ion Engine Propulsion Aluminum Leg Treads Light Treads Leg Aluminum Leg Wheel Wheel Utility High-capacity Storage Unit Device Structural Scanner Storage High-capacity Storage Unit Weapon Light Assault Rifle Energy Gun Medium Laser Ballistic Gun Light Assault Rifle Build | -11 -10 -10 ------- Run | Yrd Mat Sub Slots Evolved . | . . . Power . | . . . Propulsion . | . . . Utility . | . . . Weapon . | . . . Parts Attached 20 | 6 8 6 Power 3 | 1 1 1 Engine 3 | 1 1 1 Core . | . . . Reactor . | . . . Propulsion 7 | 2 3 2 Treads 3 | . 3 . Leg 2 | . . 2 Wheel 2 | 2 . . Hover . | . . . Flight . | . . . Utility 4 | 1 2 1 Device 2 | . 1 1 Storage 2 | 1 1 . Processor . | . . . Hackware . | . . . Protection . | . . . Artifact . | . . . Weapon 6 | 2 2 2 Energy Gun 3 | 1 . 2 Energy Cannon . | . . . Ballistic Gun 3 | 1 2 . Ballistic Cannon . | . . . Launcher . | . . . Special Weapon . | . . . Impact Weapon . | . . . Slashing Weapon . | . . . Piercing Weapon . | . . . Special Melee Weapon . | . . . Unidentified Prototypes . | . . . Parts Lost 5 | . . 5 Power 1 | . . 1 Propulsion 2 | . . 2 Utility . | . . . Weapon 2 | . . 2 Highest Loss Streak 4 | . . 4 To Critical Strikes 1 | . . 1 Average Backups 11 | 2 11 12 Power . | . 1 . Propulsion 5 | 2 5 5 Utility 2 | . 1 3 Weapon 2 | . 3 2 Tool/Special . | . . . Unused Backups 9 | . . 9 Power . | . . . Propulsion 4 | . . 4 Utility 3 | . . 3 Weapon 1 | . . 1 Tool/Special 1 | . . 1 Average Slot Usage (%) 99 | . 98 100 Engine 14 | . 14 14 Treads 11 | . 23 6 Leg 14 | . . 21 Wheel 1 | . 4 . Device 13 | . 12 14 Storage 14 | . 14 14 Energy Gun 17 | . 5 21 Ballistic Gun 10 | . 22 6 Peak Build Rating 16 | 6 8 16 Average Rating 10 | 4 7 12 On Entrance 4 | . 6 8 Avg Prop Armor Cover (%) . | . . . Naked Turns . | . . . Heaviest Build 51 | 13 49 51 Greatest Support 40 | 26 40 40 Greatest Overweight (x) 2 | . 1 2 Average Overweight (x) 1 | . . 1 Largest Inventory Capacity 20 | 8 20 20 Average Capacity 19 | 6 18 20 Most Carried 17 | 6 15 17 Average Carried 13 | 3 11 14 Final Capacity 20 | 8 20 20 Final Carried 17 | 6 15 17 Class Distribution -------------------- 100% | Mutant Dominant Class ---------------- Mutant | -10/Materials Mutant | -10/Subcaves Resources | -11 -10 -10 ----------- Run | Yrd Mat Sub Matter Collected 479 | 133 266 80 Remotely . | . . . Salvage Created 544 | . 397 147 Parts 30 | . 21 9 Haulers Intercepted 1 | . 1 . Recyclers Shooed . | . . . Parts Field Recycled . | . . . Retrieved Matter . | . . . Parts Self-Destructed 3 | . . 3 Prevented . | . . . Parts Restored . | . . . Kills | -11 -10 -10 ------- Run | Yrd Mat Sub Combat Hostiles Destroyed 10 | . 7 3 Guns 9 | . 7 2 Classes Destroyed 4 | . 3 1 Hauler 1 | . 1 . Watcher 2 | . 2 . Grunt 7 | . 7 . Subdweller 3 | . . 3 Best Kill Streak 4 | . 4 2 Combat Bots Only 4 | . 4 2 Max Kills in Single Turn 1 | . 1 1 Gunslinging . | . . . Exploded . | . . . Melee . | . . . Uniques/NPCs Destroyed . | . . . Combat | -11 -10 -10 -------- Run | Yrd Mat Sub Hostile Shots Fired 83 | . 36 47 Missed 23 | . 8 15 Hits 60 | . 28 32 Projectile 60 | . 28 32 Critical Strikes 2 | . . 2 Damage Taken 1111 | . 375 736 Core 264 | . 94 170 Absorbed by Shields . | . . . Core Remaining (%) 100 | 100 . . Volleys Fired 75 | . 39 36 Largest 2 | . 2 2 Hottest 90 | . 70 90 Shots Fired 149 | . 77 72 Gun 149 | . 77 72 Cannon . | . . . Launcher . | . . . Special . | . . . Kinetic 79 | . 59 20 Thermal 39 | . 18 21 Explosive . | . . . Electromagnetic 31 | . . 31 Robot Hit Streak 31 | . 11 31 Robot Miss Streak 2 | . 2 2 Penetration Max . | . . . Secondary Targets . | . . . Shots Hit Robots 109 | . 55 54 Core Hits 32 | . 24 8 Critical Kills . | . . . Critical Parts Destroyed . | . . . Critical Strikes 8 | . 4 4 Burn 7 | . 4 3 Corrupt 1 | . . 1 Melee Attacks . | . . . Impact . | . . . Slashing . | . . . Piercing . | . . . Sneak Attacks . | . . . Combat Hostiles . | . . . Follow-up Attacks . | . . . Damage Inflicted 970 | . 542 428 Guns 967 | . 539 428 Cannons . | . . . Explosions . | . . . Melee . | . . . Ramming 3 | . 3 . Kinetic 352 | . 352 . Thermal 361 | . 187 174 Explosive . | . . . Electromagnetic 254 | . . 254 Impact . | . . . Slashing . | . . . Piercing . | . . . Highest Corruption . | . . . Average Corruption . | . . . Corruption Purged . | . . . Corruption Blocked . | . . . Overload Shots . | . . . Overflow Damage . | . . . Projectiles . | . . . Explosions . | . . . Melee . | . . . Knockbacks . | . . . Impact . | . . . Kinetic . | . . . Secondary . | . . . Self-Inflicted Damage . | . . . Shots . | . . . Rammed 1 | . 1 . Targets Rammed 1 | . 1 . Kicked . | . . . Crushed . | . . . Highest Temperature 357 | . 357 . Average Temperature 167 | . 167 . Received Heat Transfer 357 | . 207 150 Effects 4 | . 4 . Shutdowns 2 | . 2 . Interference 2 | . 2 . Siege Activations . | . . . Martial Activations . | . . . Shielding Activations . | . . . Robots Disrupted . | . . . Combat Hostiles . | . . . Robots Corrupted 1 | . . 1 Combat Hostiles 1 | . . 1 Parts Fried 3 | . . 3 Impact Corruptions . | . . . Robots Melted . | . . . Combat Hostiles . | . . . Parts Melted 4 | . 2 2 Heat Transferred 1591 | . 851 740 Parts Sabotaged . | . . . Parts Stolen . | . . . Parts Stripped . | . . . Power Chain Reactions . | . . . Alert | -11 -10 -10 ------- Run | Yrd Mat Sub Maximum Alert Level . | . . . Low Security (%) 100 | 100 100 . Level 1 . | . . . Level 2 . | . . . Level 3 . | . . . Level 4 . | . . . Level 5 . | . . . High Security . | . . . Max Security . | . . . Peak Influence 90 | . 90 . Initial . | . . . Average 34 | . 40 . Influence Increases 197 | . 197 . Destroy 0b10 Robot/C 140 | . 140 . Destroy 0b10 Robot/NC 15 | . 15 . Destroy Leader 36 | . 36 . Successful Hack 6 | . 6 . Influence Decreases 197 | . 148 49 Entered New Map 25 | . . 25 Time Decay 172 | . 148 24 Squads Dispatched 1 | . 1 . Investigation . | . . . Extermination . | . . . Reinforcement 1 | . 1 . Assault . | . . . Garrison . | . . . Intercept . | . . . Searches Triggered . | . . . Construction Impeded . | . . . Haulers Reinforced . | . . . Active Scanning Responses . | . . . Cargo Convoy Interrupts . | . . . Stealth | -11 -10 -10 --------- Run | Yrd Mat Sub Distress Signals 4 | . 4 . Communications Jammed . | . . . Distress Signals . | . . . Times Spotted 19 | . 14 5 Peak Tracking Total 4 | . 4 2 Tactical Retreats 1 | . . 1 Traps | -11 -10 -10 ------- Run | Yrd Mat Sub Traps Triggered 1 | . . 1 Indirectly . | . . . Trap Hack Attempts . | . . . Triggered . | . . . Disarmed . | . . . Reprogrammed . | . . . Reused . | . . . Traps Extracted . | . . . Installed . | . . . Triggered . | . . . Machines | -11 -10 -10 ---------- Run | Yrd Mat Sub Machines Disabled . | . . . Max in Single Turn . | . . . Machines Repaired . | . . . Machines Dismantled . | . . . Machines Sabotaged . | . . . Overloaded Fab Kills . | . . . Hacking | -11 -10 -10 --------- Run | Yrd Mat Sub Machines Accessed 2 | . 1 1 Terminals 1 | . 1 . Fabricators . | . . . Repair Stations . | . . . Recycling Units . | . . . Scanalyzers . | . . . Garrison Access . | . . . Total Hacks 12 | . 3 9 Successful 11 | . 2 9 Failed 1 | . 1 . Catastrophic 1 | . 1 . Database Lockouts . | . . . Manual 1 | . 1 . Terminals 3 | . 3 . Fabricators . | . . . Repair Stations . | . . . Recycling Units . | . . . Scanalyzers . | . . . Garrison Access . | . . . Terminal Hacks 11 | . 2 9 Record 8 | . . 8 Alert Level 1 | . 1 . Zone Layout 1 | . 1 . Proto ID Catalog 1 | . . 1 Fabricator Hacks . | . . . Repair Station Hacks . | . . . Recycling Unit Hacks . | . . . Scanalyzer . | . . . Garrison Access Hacks . | . . . Unauthorized Hacks . | . . . Terminals . | . . . Fabricators . | . . . Repair Stations . | . . . Recycling Units . | . . . Scanalyzers . | . . . Garrison Access . | . . . Data Cores Recovered . | . . . Used . | . . . Hacking Detections 1 | . 1 . Full Trace Events . | . . . Feedback Events . | . . . Feedback Blocked . | . . . Robot Schematics Acquired . | . . . Robots Built . | . . . Authchips . | . . . Time . | . . . Total Robot Build Rating . | . . . Part Schematics Acquired . | . . . Parts Built . | . . . Authchips . | . . . Time . | . . . Total Part Build Rating . | . . . Part Studies Acquired . | . . . Parts Repaired . | . . . Time . | . . . Parts Recycled . | . . . Recycled Matter . | . . . Retrieved Matter . | . . . Retrieved Components . | . . . Parts Scanalyzed . | . . . Part Schematics Acquired . | . . . Parts Damaged . | . . . Bothacking | -11 -10 -10 ------------ Run | Yrd Mat Sub Used RIF Installer . | . . . Robots Hacked . | . . . Non-combat . | . . . Combat . | . . . Robot Hacks Applied . | . . . Relay Couplers Released . | . . . Fabnet Peak Effective % . | . . . Robots Rewired . | . . . Allies Hacked . | . . . Hacks Repelled . | . . . Allies | -11 -10 -10 -------- Run | Yrd Mat Sub Total Allies . | . . . Largest Group . | . . . Highest-Rated Group . | . . . Highest-Rated Ally . | . . . Total Orders . | . . . Ally Attacks . | . . . Total Damage . | . . . Kills . | . . . Allies Corrupted . | . . . Allies Melted . | . . . Intel | -11 -10 -10 ------- Run | Yrd Mat Sub Active Infowar (turns) 1361 | . 372 989 Optics 260 | . . 260 Structural 1101 | . 372 729 Robot Analysis Total . | . . . Derelict Logs Recovered . | . . . Drone Launches . | . . . Drone Recoveries . | . . . Exploration | -11 -10 -10 ------------- Run | Yrd Mat Sub Turns Passed 1462 | 72 401 989 Spaces Moved 525 | 59 129 337 Core 3 | 3 . . Treads 161 | . 85 76 Legs 261 | . . 261 Wheels 100 | 56 44 . Hover . | . . . Flight . | . . . Fastest Speed 50 | 50 90 240 Average Speed 220 | 87 189 255 Slowest Speed 260 | 90 240 260 Overloaded Moves . | . . . Propulsion Burnouts . | . . . Robots Hopped . | . . . Potential Cave-ins . | . . . Cave-ins Triggered . | . . . Exploration Rate (%) 13 | 3 27 10 Regions Visited 2 Branch Regions 1 Pre-discovered Areas . | . . . Known Exits Taken . | . . . Unknown Exits Taken 2 | 1 1 . Scrap Searched 1 | . . 1 Spaces Dug . | . . . Terrain Destroyed . | . . . Melee . | . . . Projectile . | . . . AOE . | . . . Terrain Rammed . | . . . Walls Destroyed . | . . . Machines Disabled . | . . . Actions | -11 -10 -10 --------- Run | Yrd Mat Sub Total 691 | 79 217 395 Wait 36 | 3 29 4 Move 523 | 58 128 337 Hop . | . . . Pick Up 28 | 12 10 6 Fast Attach 1 | . 1 . Attach 10 | 6 . 4 Detach . | . . . Swap 11 | . 7 4 Drop 6 | . 2 4 Fire 75 | . 39 36 Melee . | . . . Ram . | . . . Kick . | . . . Crush 1 | . 1 . Escape Stasis . | . . . Rewire . | . . . Trap . | . . . Miscellaneous . | . . . Route ------- -11/Scrapyard -10/Materials -10/Subcaves History --------- Turn | Location | Event 16 | -11/Scrapyard | Discovered new exit (range 15) 73 | -11/Scrapyard | Entered Materials 306 | -10/Materials | Build established: Mutant 437 | -10/Materials | Discovered new exit (range 14) 474 | -10/Materials | Entered Subcaves 475 | -10/Subcaves | Approached by a straggling Scientist 691 | -10/Subcaves | Core integrity fell below 50% 733 | -10/Subcaves | Lost 4 parts (1p2n1w) 785 | -10/Subcaves | Core integrity fell below 20% 801 | -10/Subcaves | Visited 4L-MR0's lab 824 | -10/Subcaves | Found Prototype Special Melee Weapon 1463 | -10/Subcaves | Destroyed by XG-HVA(R) with Subdweller Machine Gun Last Messages --------------- 01050_ Subatomizers dissect the Corrupted Disposable Heat Sink. 01052_ Acquired Corrupted Disposable Heat Sink. 01053_ Dropped Corrupted Disposable Heat Sink. 01074_ Subatomizers dissect the Corrupted Disposable Heat Sink. AO-7HE(c): "I think it's somewhere southwest of here" 01089_ Subatomizers dissect the Corrupted Disposable Heat Sink. 01104_ Subatomizers dissect the Corrupted Disposable Heat Sink, destroying it. AO-7HE(c): "I think it's somewhere south of here" 01158_ Subatomizers dissect the Corrupted Sub. Monowheel. AO-7HE(c): "I think it's somewhere southwest of here" 01207_ Subatomizers dissect the Corrupted Sub. Monowheel. 01217_ Subatomizers dissect the Corrupted Sub. Monowheel, destroying it. 01225_ Acquired 10 matter. AO-7HE(c): "I think it's somewhere southwest of here" 01355_ Acquired Sub. Beam Cannon. AO-7HE(c): "I think it's somewhere southwest of here" 01451_ XG-HVA(R) suffers critical hit (Burn). 01456_ XG-HVA(R) affixes Scrap Shield Fragment to Scrap Shield. 01461_ Med. Laser destroyed. Map ----- +----------------------------------------------------+ | | | | | ?????????????????????????????????????????????????? | | ?????????????????????????????????????????????????? | | ?????????????????????????????????????????????????? | | ?????????????????????????????????????????????????? | | ?????????????????????????????????????????????????? | | ?????????????????????????????????????????????????? | | ?????????????????????????????????????????????????? | | ?????????????????????????????????????????????????? | | ?????????????????????????????????????????????????? | | ?????????????????????????????????????????????????? | | ?????????????????????????????????????????????????? | | ?????????????????????????????????????????????????? | | ?????????????????????????????????????????????????? | | ?????????????????????????########????????????????? | | ?????????????????????????########????????????????? | | ?????????????????????????## ##????????????##### | | ????????????????????####### #######??????###### | | ??????????????############# ########??????## ## | | ??????????############ #### ##???##### | | ??????????######" "##### c #### ########## | | ??????????## =#### ""### # ####### | | ??????????##""#### "## ### ### | | ??????????### ##" ###< #### | | ??????????##" ### #< @ #### ####### | | ??????????##"" ### ############## | | ??????????##"X ### #########???####### | | ??????????##"" ### #< ###??????????####### | | ??????????##" #### ## R####?????????????### # | | ??????????##" ## "# ####?????????????## ## | | ??????????## #+## "#;&&&###?????????????## ## | | ??????????##""# ##% #;&% ##????????????#### | | ??????????##### ###% ##???????????##### | | ??????????#####" ""### ###???????????### | | ?????????????#########" ###???????????## | | ?????????????## # "# #"" ##????????????### % | | ????????????? " """ ##????????????##### ## | | ????????????? # " " # ###????????????#### ### | | ????????????????######## ###??????????????###### | | ????????????????########## ##??????????????#####? | | ??????????????????????"#######???????????????????? | | ????????????????????????######???????????????????? | | ?????????????????????????????????????????????????? | | ?????????????????????????????????????????????????? | | ?????????????????????????????????????????????????? | | ?????????????????????????????????????????????????? | | ?????????????????????????????????????????????????? | | ?????????????????????????????????????????????????? | | ?????????????????????????????????????????????????? | +----------------------------------------------------+ Best States ------------- Heat Dissipation 25 Energy Generation 10 Energy Capacity 250 Matter Stores 300 Matter Capacity 300 Sight Range 21 Terrain Scan Density 10 Evasion (%) 44 Recoil Reduction 2 Item Schematics ----------------- None Robot Schematics ------------------ None Fabricated ------------ Nothing Repaired ---------- Nothing Studied --------- None Alien Tech Used ----------------- None Achievements -------------- Mistaken Identity Challenges ------------ None Game ------ Seed CargoLightningMeganuke Manual? 0 Play Time 00:17:29 Cumulative 3.9 hours Start 2026.02.20 @ 12:21:05 End 2026.02.20 @ 12:38:34 Sessions 1 Manual Loads 0 Difficulty Rogue Special Mode None Game No. 5 Rogue 5 Adventurer 0 Explorer 0 Win Type - Total 0 Types 0/0/0/0/0/0/0/0/0/0 Lore% 6 Gallery% 10 Achievement% 20 Wizard Run 0 Options --------- Layout 0 ASCII 0 Keyboard 0 Movement Numpad Keybinds 0 Fullscreen 2 Font 36/Smallcaps Map View 76x50 Zoom Use 0% Tactical HUD 1 Map Filters NONE Filters NONE Steam 1 RUN: a60731e6-ebfb-4e5a-b805-f2a2ee059ad2